bitfinex-derivatives/quotes_SOLF0:USTF0_20250321
["timestamp","ask_amount","ask_price","bid_price","bid_amount"]
[1742580595936,7.9203,126.32,126.3,0.05010304]
[1742580596241,39.72758147,126.33,126.3,0.05010304]
[1742580596242,11.57729052,126.31,126.3,0.05010304]
[1742580596438,39.65729052,126.31,126.3,0.05010304]
[1742580596639,47.57809052,126.31,126.3,0.05010304]
[1742580597043,11.62758147,126.33,126.3,0.05010304]
[1742580597239,0.05029095,126.33,126.3,0.05010304]
[1742580597642,11.62758147,126.33,126.3,0.05010304]
[1742580598039,19.54758147,126.33,126.3,7.97120304]
[1742580598444,7.9202,126.32,126.3,0.05010304]
[1742580598746,11.62758147,126.33,126.3,0.05010304]
[1742580599247,0.05029095,126.33,126.3,11.62739356]
[1742580599445,0.05029095,126.33,126.32,11.57729052]
[1742580599640,0.05029095,126.33,126.32,19.49749052]
[1742580601141,0.05029095,126.33,126.3,0.05010304]
[1742580601342,11.62758147,126.33,126.3,0.05010304]
[1742580601541,0.05029095,126.33,126.3,11.62739356]
[1742580602145,0.05029095,126.33,126.32,7.9202]
[1742580602341,0.05029095,126.33,126.32,19.49749052]
[1742580602543,9.095e-05,126.33,126.32,19.49749052]
[1742580611755,9.095e-05,126.33,126.31,280.85779052]
[1742580611951,9.095e-05,126.33,126.31,269.2805]
[1742580612352,9.095e-05,126.33,126.31,261.36]
[1742580612851,9.095e-05,126.33,126.31,269.2805]
[1742580613353,9.095e-05,126.33,126.32,7.9202]
[1742580613759,9.095e-05,126.33,126.32,19.49749052]
[1742580615859,9.095e-05,126.33,126.32,47.57749052]
[1742580618165,5.03466,126.4,126.38,7.9159]
[1742580618364,5.03466,126.4,126.31,277.2013]
[1742580618365,5.03466,126.4,126.36,11.57729052]
[1742580618564,16.61195052,126.4,126.35,39.65729052]
[1742580618760,11.57729052,126.39,126.35,39.65729052]
[1742580618965,11.57729052,126.39,126.34,11.57729052]
[1742580619269,19.49339052,126.39,126.36,7.9174]
[1742580619569,0.06026591,126.38,126.36,11.57729052]
[1742580619962,0.06026591,126.38,126.37,7.917]
[1742580620471,0.06026591,126.38,126.37,19.49429052]
[1742580621166,0.06026591,126.38,126.35,0.05693559]
[1742580621363,11.63755643,126.38,126.35,0.05693559]
[1742580621568,11.57729052,126.36,126.32,7.9198]
[1742580621766,39.65729052,126.35,126.32,7.9198]
[1742580622071,19.49649052,126.34,126.31,269.2804]
[1742580622460,39.65729052,126.35,126.31,261.36]
[1742580622664,47.57619052,126.35,126.32,7.9199]
[1742580622970,0.05631063,126.34,126.32,7.97511591]
[1742580623171,7.97521063,126.34,126.32,7.97511591]
[1742580624969,36.05521063,126.34,126.32,7.97511591]
[1742580626670,28.13631063,126.34,126.32,7.97511591]
[1742580627077,28.13631063,126.34,126.33,7.9195]
[1742580627975,28.13631063,126.34,126.33,19.49679052]
[1742580628169,0.05631063,126.34,126.33,19.49679052]
[1742580628777,0.05631063,126.34,126.33,7.9195]
[1742580630269,0.05631063,126.34,126.32,7.97501591]
[1742580630474,28.13631063,126.34,126.32,0.05521591]
[1742580631778,7.9195,126.33,126.32,0.05521591]
[1742580632075,28.13631063,126.34,126.32,0.05521591]
[1742580634082,7.9195,126.33,126.32,0.05521591]
[1742580635982,7.9218,126.3,126.28,11.57729052]
[1742580636282,28.08,126.31,126.27,19.49999052]
[1742580636481,28.08,126.31,126.27,11.57729052]
[1742580636877,39.65729052,126.31,126.26,272.85729052]
[1742580637082,7.922,126.29,126.26,272.85729052]
[1742580637282,11.63080321,126.3,126.27,0.05194877]
[1742580637486,0.05351269,126.3,126.27,7.97494877]
[1742580637686,7.97521269,126.3,126.27,0.05194877]
[1742580638283,7.97521269,126.3,126.28,7.9224]
[1742580640882,7.97521269,126.3,126.27,19.55213929]
[1742580641285,7.97521269,126.3,126.28,7.9225]
[1742580643990,0.05351269,126.3,126.28,7.9225]
[1742580647391,0.05351269,126.3,126.27,11.62923929]
[1742580647796,0.05351269,126.3,126.29,7.922]
[1742580650691,11.63080321,126.3,126.27,0.05194877]
[1742580650890,28.08,126.29,126.27,0.05194877]
[1742580651093,36.0024,126.29,126.27,0.05194877]
[1742580652194,36.0024,126.29,126.27,7.97484877]
[1742580653490,28.08,126.29,126.27,7.97484877]
[1742580653690,0.05351269,126.3,126.28,11.57729052]
[1742580653889,0.05351269,126.3,126.29,11.57729052]
[1742580654098,0.05351269,126.3,126.29,19.49929052]
[1742580654798,71.90134474,126.36,126.29,11.57729052]
[1742580654994,71.90134474,126.36,126.33,11.57729052]
[1742580655594,71.90134474,126.36,126.34,7.9184]
[1742580655891,79.81924474,126.36,126.33,11.57729052]
[1742580656087,11.57729052,126.35,126.34,0.0512765]
[1742580656292,7.9191,126.34,126.31,11.57729052]
[1742580656496,7.9191,126.34,126.33,0.06009676]
[1742580657585,19.49589052,126.35,126.33,0.06009676]
[1742580658496,7.9189,126.34,126.33,0.06009676]
[1742580660296,47.61729052,126.34,126.28,7.9221]
[1742580660600,11.57729052,126.31,126.26,272.85729052]
[1742580660793,47.65859052,126.31,126.26,272.85729052]
[1742580661387,0.0605502,126.3,126.28,7.9222]
[1742580661589,7.9819502,126.3,126.28,7.9222]
[1742580661789,0.0605502,126.3,126.27,0.05591035]
[1742580661989,0.0605502,126.3,126.27,11.63320087]
[1742580663869,0.0605502,126.3,126.28,11.57729052]
[1742580664123,0.0605502,126.3,126.29,7.922]
[1742580669813,0.0605502,126.3,126.28,19.49969052]
[1742580670013,0.0605502,126.3,126.27,28.17591035]
[1742580670516,0.0605502,126.3,126.27,36.09891035]
[1742580671119,7.9221,126.29,126.27,36.09891035]
[1742580671715,7.9822502,126.3,126.27,0.05591035]
[1742580671904,0.0605502,126.3,126.27,0.05591035]
[1742580672809,7.9221,126.29,126.27,7.97891035]
[1742580673217,0.0605502,126.3,126.27,0.05591035]
[1742580673417,7.9221,126.29,126.27,7.97861035]
[1742580675719,7.9227,126.28,126.27,0.05591035]
[1742580683713,19.49999052,126.28,126.23,11.57729052]
[1742580683919,11.57729052,126.25,126.22,261.38]
[1742580684222,39.65729052,126.26,126.22,261.38]
[1742580684425,7.9252,126.24,126.22,269.3062]
[1742580684919,7.97871474,126.24,126.22,269.3062]
[1742580686422,36.05871474,126.24,126.21,7.9267]
[1742580687419,36.05871474,126.24,126.22,7.9263]
[1742580687620,28.13351474,126.24,126.2,11.57729052]
[1742580687921,28.13351474,126.24,126.21,11.57729052]
[1742580688519,28.13351474,126.24,126.23,7.9258]
[1742580690824,28.13351474,126.24,126.22,7.926]
[1742580691829,11.57729052,126.23,126.2,7.9272]
[1742580692026,28.2,126.22,126.18,11.57729052]
[1742580692528,0.05020202,126.21,126.18,19.50589052]
[1742580692727,0.05020202,126.21,126.19,11.57729052]
[1742580692929,0.05020202,126.21,126.19,19.50529052]
[1742580694232,39.77729052,126.2,126.12,277.3243]
[1742580694435,39.77729052,126.2,126.16,11.57729052]
[1742580694622,28.2,126.2,126.17,11.51857423]
[1742580694821,28.2,126.2,126.17,11.56879374]
[1742580695529,28.2,126.2,126.17,0.05021951]
[1742580695832,28.25770938,126.2,126.17,0.05021951]
[1742580696228,39.8349999,126.2,126.17,0.05021951]
[1742580697027,39.8349999,126.2,126.18,7.9284]
[1742580698134,39.8349999,126.2,126.19,7.9283]
[1742580699936,28.25770938,126.2,126.19,7.9283]
[1742580703837,0.05770938,126.2,126.19,7.9283]
[1742580705539,0.05770938,126.2,126.18,7.9287]
[1742580705734,39.7949999,126.2,126.18,7.9287]
[1742580705937,39.7949999,126.2,126.17,0.05021951]
[1742580706237,39.7949999,126.2,126.17,7.97951951]
[1742580706439,47.7229999,126.2,126.17,7.97951951]
[1742580707843,47.7229999,126.2,126.18,7.9289]
[1742580708339,47.7229999,126.2,126.17,0.05021951]
[1742580708539,47.7229999,126.2,126.17,7.97931951]
[1742580708739,7.9284,126.19,126.17,7.97931951]
[1742580709338,47.7229999,126.2,126.17,7.97931951]
[1742580709645,47.7229999,126.2,126.18,7.9289]
[1742580709941,39.7949999,126.2,126.17,0.05021951]
[1742580710138,39.7949999,126.2,126.18,7.9289]
[1742580710537,39.7949999,126.2,126.17,0.05021951]
[1742580710737,39.7949999,126.2,126.18,7.9289]
[1742580711137,36.14540938,126.2,126.18,7.9289]
[1742580711333,11.57729052,126.19,126.17,0.05021951]
[1742580711538,28.21770938,126.2,126.17,0.05021951]
[1742580711836,36.14590938,126.2,126.17,7.97941951]
[1742580712442,7.9284,126.19,126.17,7.97941951]
[1742580714142,47.7229999,126.2,126.17,7.97941951]
[1742580714338,47.7229999,126.2,126.18,7.9288]
[1742580714548,28.21770938,126.2,126.18,7.9288]
[1742580714740,36.14540938,126.2,126.17,7.97961951]
[1742580715542,36.14540938,126.2,126.17,0.05021951]
[1742580716149,36.14540938,126.2,126.17,7.97931951]
[1742580716338,47.7226999,126.2,126.17,7.97931951]
[1742580717541,7.9284,126.19,126.17,0.05021951]
[1742580718044,11.57729052,126.19,126.17,0.05021951]
[1742580719149,19.50619052,126.18,126.17,0.05021951]
[1742580719349,47.64619052,126.18,126.17,0.05021951]
[1742580722646,39.71729052,126.18,126.17,0.05021951]
[1742580724750,11.6349999,126.2,126.17,0.05021951]
[1742580724949,28.14,126.19,126.17,0.05021951]
[1742580725344,28.14,126.19,126.18,7.9285]
[1742580730249,0.05770938,126.2,126.19,7.9283]
[1742580732054,0.05770938,126.2,126.18,7.9286]
[1742580732255,7.98540938,126.2,126.18,7.9286]
[1742580732451,11.6349999,126.2,126.17,0.05021951]
[1742580732650,11.57729052,126.19,126.17,0.05021951]
[1742580732851,39.67729052,126.19,126.17,0.05021951]
[1742580733254,47.60589052,126.19,126.17,0.05021951]
[1742580733455,39.67729052,126.19,126.17,7.97951951]
[1742580733852,0.05770938,126.2,126.17,11.62751003]
[1742580734052,0.05770938,126.2,126.19,7.9283]
[1742580735349,11.6349999,126.2,126.17,0.05021951]
[1742580735557,11.57729052,126.19,126.17,0.05021951]
[1742580735752,39.69729052,126.19,126.17,0.05021951]
[1742580735952,47.62589052,126.19,126.17,7.97981951]
[1742580736152,28.12,126.19,126.17,0.05021951]
[1742580736552,28.12,126.19,126.17,7.97941951]
[1742580738452,47.62569052,126.19,126.17,0.05021951]
[1742580738657,28.12,126.19,126.17,0.05021951]
[1742580739259,28.12,126.19,126.18,7.9289]
[1742580739458,0.05770938,126.2,126.17,0.05021951]
[1742580739957,0.05770938,126.2,126.19,7.9283]
[1742580745761,0.05770938,126.2,126.19,19.50559052]
[1742580746160,9.38e-06,126.2,126.19,19.50559052]
[1742580746365,43.76134474,126.25,126.24,7.9252]
[1742580747458,43.76134474,126.25,126.23,7.98598676]
[1742580749258,47.66164261,126.26,126.24,7.9251]
[1742580749854,39.73764261,126.26,126.24,7.9251]
[1742580750258,39.73764261,126.26,126.25,7.9245]
[1742580751459,39.73764261,126.26,126.24,7.9248]
[1742580751864,39.73764261,126.26,126.23,0.06048676]
[1742580752871,39.73764261,126.26,126.24,7.9248]
[1742580754268,39.73764261,126.26,126.23,0.06048676]
[1742580754466,47.66154261,126.26,126.23,0.06048676]
[1742580754665,39.73764261,126.26,126.24,7.9249]
[1742580755369,39.73764261,126.26,126.25,7.9245]
[1742580755866,39.73764261,126.26,126.23,0.06048676]
[1742580756262,39.73764261,126.26,126.24,7.9247]
[1742580756968,28.16035209,126.26,126.25,7.9245]
[1742580758166,0.06035209,126.26,126.25,7.9245]
[1742580765071,0.06035209,126.26,126.24,7.925]
[1742580765773,0.06035209,126.26,126.25,7.9245]
[1742580768375,0.06035209,126.26,126.25,19.50179052]
[1742580771375,5.209e-05,126.26,126.25,19.50179052]
[1742580771879,5.209e-05,126.26,126.25,23.63529052]
[1742580773176,5.01895,126.27,126.25,23.63529052]
[1742580773476,43.77509052,126.34,126.26,39.65729052]
[1742580773680,43.77509052,126.34,126.29,11.57729052]
[1742580773880,51.69449052,126.34,126.3,7.9211]
[1742580774181,43.77509052,126.34,126.3,7.9211]
[1742580774381,7.97794768,126.33,126.31,7.97182462]
[1742580774683,0.05834768,126.33,126.32,11.57729052]
[1742580775076,0.05834768,126.33,126.32,19.49749052]
[1742580776382,0.05834768,126.33,126.31,0.05102462]
[1742580776383,0.05834768,126.33,126.31,19.54881514]
[1742580776584,0.05834768,126.33,126.31,11.62831514]
[1742580777280,0.05834768,126.33,126.32,7.9202]
[1742580778084,0.05834768,126.33,126.32,19.49749052]
[1742580779587,0.05834768,126.33,126.32,11.57729052]
[1742580779885,0.05834768,126.33,126.31,11.62831514]
[1742580780484,0.05834768,126.33,126.31,19.54881514]
[1742580781590,7.97784768,126.33,126.31,19.54881514]
[1742580781786,7.97784768,126.33,126.31,7.97152462]
[1742580782488,7.97784768,126.33,126.31,0.05102462]
[1742580783490,7.97784768,126.33,126.31,7.97162462]
[1742580783685,0.05834768,126.33,126.31,7.97162462]
[1742580784084,0.05834768,126.33,126.31,19.54891514]
[1742580784283,0.05834768,126.33,126.32,7.9202]
[1742580786391,0.05834768,126.33,126.31,19.54871514]
[1742580787385,0.05834768,126.33,126.32,7.9202]
[1742580787797,0.05834768,126.33,126.32,19.49749052]
[1742580791498,0.05834768,126.33,126.32,11.57729052]
[1742580792097,0.05834768,126.33,126.32,19.49749052]
[1742580792305,0.05834768,126.33,126.32,11.57729052]
[1742580792798,7.97804768,126.33,126.31,11.62831514]
[1742580793000,7.97804768,126.33,126.31,0.05102462]
[1742580796504,7.9202,126.32,126.31,0.05102462]
[1742580797103,19.49749052,126.32,126.31,0.05102462]
[1742580798006,11.57729052,126.32,126.24,273.01729052]
[1742580798309,11.57729052,126.27,126.24,261.44]
[1742580798602,7.9243,126.26,126.24,261.44]
[1742580799098,7.97488736,126.26,126.24,261.49500074]
[1742580800906,7.97488736,126.26,126.24,269.42010074]
[1742580801107,0.05058736,126.26,126.24,269.42010074]
[1742580802508,0.05058736,126.26,126.25,7.9245]
[1742580803912,0.05058736,126.26,126.24,280.99719126]
[1742580804112,0.05058736,126.26,126.24,261.49500074]
[1742580804303,7.97488736,126.26,126.24,261.49500074]
[1742580804812,7.9245,126.25,126.24,0.05500074]
[1742580805010,19.50179052,126.25,126.24,0.05500074]
[1742580806516,11.57729052,126.25,126.2,11.57729052]
[1742580806710,11.57729052,126.24,126.2,47.58469052]
[1742580806908,19.50279052,126.24,126.2,39.65729052]
[1742580807105,19.50279052,126.24,126.21,7.9266]
[1742580807314,7.9255,126.24,126.21,7.9266]
[1742580807713,7.98114091,126.24,126.21,7.97764197]
[1742580808507,39.71293143,126.24,126.21,0.05104197]
[1742580808712,11.57729052,126.23,126.21,0.05104197]
[1742580809410,19.50329052,126.23,126.21,0.05104197]
[1742580809812,7.9264,126.22,126.21,0.05104197]
[1742580810310,19.50369052,126.22,126.21,0.05104197]
[1742580810613,19.50369052,126.22,126.13,6.3661]
[1742580810614,7.9277,126.2,126.17,11.57729052]
[1742580810913,47.58499052,126.2,126.16,11.57729052]
[1742580811119,47.58499052,126.2,126.17,7.9292]
[1742580811712,47.63673246,126.2,126.17,7.9292]
[1742580811918,47.63673246,126.2,126.17,7.96700531]
[1742580812418,19.50569052,126.19,126.17,0.03780531]
[1742580812619,11.57729052,126.19,126.17,0.03780531]
[1742580812813,39.65729052,126.18,126.17,0.03780531]
[1742580813009,7.9297,126.17,126.14,269.3312]
[1742580813212,47.58699052,126.17,126.14,7.9312]
[1742580813412,19.50749052,126.16,126.14,7.9312]
[1742580813617,19.50749052,126.16,126.12,11.57729052]
[1742580814116,0.05715867,126.15,126.11,11.57729052]
[1742580814318,0.05715867,126.15,126.12,11.57729052]
[1742580814517,0.05715867,126.15,126.14,7.9315]
[1742580819522,0.05715867,126.15,126.13,7.9318]
[1742580819722,28.15715867,126.15,126.13,7.9318]
[1742580820022,36.08835867,126.15,126.13,7.9318]
[1742580821023,36.08835867,126.15,126.12,7.9324]
[1742580821221,47.66564919,126.15,126.12,7.9324]
[1742580822121,47.66564919,126.15,126.13,7.9321]
[1742580822318,47.66564919,126.15,126.11,11.57729052]
[1742580823423,47.66564919,126.15,126.12,7.9322]
[1742580823723,47.66564919,126.15,126.11,11.57729052]
[1742580824017,47.66564919,126.15,126.12,7.9321]
[1742580824921,47.66564919,126.15,126.13,7.9319]
[1742580825524,36.08835867,126.15,126.13,7.9319]
[1742580826123,28.15715867,126.15,126.13,7.9319]
[1742580826321,28.15715867,126.15,126.14,7.9315]
[1742580827123,36.08805867,126.15,126.13,7.9318]
[1742580827625,36.08805867,126.15,126.11,11.57729052]
[1742580827927,36.08805867,126.15,126.13,7.932]
[1742580829635,7.9316,126.14,126.12,7.9324]
[1742580829829,39.73444919,126.15,126.1,11.57729052]
[1742580830123,19.50969052,126.13,126.11,7.9331]
[1742580830320,39.67729052,126.13,126.08,11.57729052]
[1742580830521,11.57729052,126.12,126.08,11.57729052]
[1742580830826,28.1,126.11,126.1,7.934]
[1742580831225,28.1,126.11,126.1,19.51129052]
[1742580831424,0.05853611,126.12,126.11,7.9333]
[1742580831627,0.05853611,126.12,126.11,19.51059052]
[1742580832825,7.99123611,126.12,126.05,2.188]
[1742580833030,28.12,126.11,126.07,11.57729052]
[1742580833432,28.12,126.11,126.09,7.9342]
[1742580833931,47.63069052,126.11,126.09,7.9342]
[1742580834232,39.69729052,126.11,126.09,7.9342]
[1742580835836,39.69729052,126.11,126.07,11.57729052]
[1742580836132,19.56882663,126.12,126.09,7.9343]
[1742580836335,28.18,126.11,126.07,11.57729052]
[1742580836929,47.69099052,126.11,126.08,7.9349]
[1742580837435,47.69099052,126.11,126.07,19.51289052]
[1742580838735,11.57729052,126.1,126.07,7.9356]
[1742580838931,11.57729052,126.1,126.08,7.9351]
[1742580839327,11.63574486,126.1,126.08,7.9351]
[1742580840536,19.56984486,126.1,126.07,7.9355]
[1742580842036,19.56984486,126.1,126.08,7.9351]
[1742580843032,7.9346,126.09,126.07,7.9357]
[1742580843235,47.67189052,126.09,126.04,11.57729052]
[1742580843636,7.99367961,126.08,126.06,7.9362]
[1742580844035,0.05837961,126.08,126.06,7.9362]
[1742580845239,0.05837961,126.08,126.07,7.9359]
[1742580846444,0.05837961,126.08,126.06,7.9362]
[1742580846940,0.05837961,126.08,126.07,7.9359]
[1742580850742,0.05837961,126.08,126.07,19.51319052]
[1742580851245,39.71729052,126.12,126.07,39.71729052]
[1742580851445,39.71729052,126.12,126.08,11.57729052]
[1742580852248,0.05915446,126.11,126.09,0.05837961]
[1742580852947,0.05915446,126.11,126.1,7.934]
[1742580857254,0.05915446,126.11,126.1,19.51129052]
[1742580858046,0.37795877,126.11,126.1,19.51129052]
[1742580862359,0.37795877,126.11,126.1,7.934]
[1742580869276,0.37795877,126.11,126.1,19.51129052]
[1742580869763,0.47054641,126.14,126.13,7.9321]
[1742580883778,0.47054641,126.14,126.13,19.50939052]
[1742580884172,0.05683512,126.15,126.14,7.9315]
[1742580884376,0.05683512,126.15,126.14,19.50879052]
[1742580891585,0.67745445,126.18,126.17,7.9296]
[1742580891786,0.67745445,126.18,126.17,47.60689052]
[1742580892383,0.76797192,126.21,126.17,39.67729052]
[1742580892589,0.76797192,126.21,126.19,11.57729052]
[1742580892793,0.05237886,126.2,126.18,0.05389298]
[1742580893389,0.05237886,126.2,126.18,7.98259298]
[1742580894094,0.05237886,126.2,126.19,19.50559052]
[1742580894889,0.05237886,126.2,126.19,47.60559052]
[1742580895290,0.76797192,126.21,126.2,7.9277]
[1742580895587,0.76797192,126.21,126.2,19.50499052]
[1742580895588,0.54905787,126.21,126.2,19.50499052]
[1742580895791,0.97950045,126.24,126.23,7.9258]
[1742580897291,0.97950045,126.24,126.22,19.56076737]
[1742580898996,0.97950045,126.24,126.23,7.9258]
[1742580899498,0.97950045,126.24,126.22,11.63456737]
[1742580899699,0.97950045,126.24,126.22,19.56066737]
[1742580900598,0.97950045,126.24,126.22,11.63456737]
[1742580901105,0.97950045,126.24,126.22,19.56056737]
[1742580901800,0.97950045,126.24,126.23,19.50309052]
[1742580903196,0.97950045,126.24,126.23,47.60309052]
[1742580903501,0.05052308,126.25,126.24,7.9252]
[1742580903705,0.05052308,126.25,126.24,19.50249052]
[1742580904000,1.15771213,126.27,126.26,7.9239]
[1742580904202,1.15771213,126.27,126.24,11.57729052]
[1742580904399,7.9239,126.26,126.24,11.57729052]
[1742580905197,7.98417722,126.26,126.24,0.05290028]
[1742580905507,7.98417722,126.26,126.24,11.6301908]
[1742580908203,7.98417722,126.26,126.24,19.5552908]
[1742580908502,0.06027722,126.26,126.24,19.5552908]
[1742580908703,0.06027722,126.26,126.24,11.6301908]
[1742580909002,7.98447722,126.26,126.24,11.6301908]
[1742580910203,7.98447722,126.26,126.24,19.5553908]
[1742580910704,7.98447722,126.26,126.25,7.9245]
[1742580910705,0.06027722,126.26,126.25,7.9245]
[1742580911002,0.06027722,126.26,126.24,11.6301908]
[1742580911201,7.9245,126.25,126.24,0.05290028]
[1742580916200,47.64186774,126.26,126.24,0.05290028]
[1742580916400,39.71756774,126.26,126.24,0.05290028]
[1742580916799,11.63756774,126.26,126.24,0.05290028]
[1742580917108,39.71756774,126.26,126.24,0.05290028]
[1742580917507,7.9245,126.25,126.24,0.05290028]
[1742580924605,28.14027722,126.26,126.24,11.6301908]
[1742580924805,0.06027722,126.26,126.25,11.57729052]
[1742580925005,0.06027722,126.26,126.25,19.50179052]
[1742580940726,1.15771213,126.27,126.26,7.9239]
[1742580941026,1.34714679,126.31,126.26,39.65729052]
[1742580941228,1.34714679,126.31,126.29,11.57729052]
[1742580941930,1.40259856,126.31,126.29,11.62835629]
[1742580942529,1.40259856,126.31,126.3,7.9214]
[1742580943032,1.40259856,126.31,126.3,19.49869052]
[1742580944940,1.40259856,126.31,126.3,11.57729052]
[1742580945130,1.40259856,126.31,126.29,0.05106577]
[1742580945329,9.32379856,126.31,126.29,0.05106577]
[1742580946135,7.9214,126.3,126.29,0.05106577]
[1742580947231,9.32369856,126.31,126.29,7.97296577]
[1742580947631,9.32369856,126.31,126.29,0.05106577]
[1742580948233,7.9214,126.3,126.29,0.05106577]
[1742580948432,19.49869052,126.3,126.29,0.05106577]
[1742580950133,37.40359856,126.31,126.29,0.05106577]
[1742580950735,29.48259856,126.31,126.29,7.97296577]
[1742580952539,1.40259856,126.31,126.29,7.97296577]
[1742580953238,9.32349856,126.31,126.29,7.97296577]
[1742580953443,9.32349856,126.31,126.29,0.05106577]
[1742580953742,37.40349856,126.31,126.29,0.05106577]
[1742580955937,37.40349856,126.31,126.29,7.97306577]
[1742580956144,37.40349856,126.31,126.29,0.05106577]
[1742580959847,37.40349856,126.31,126.29,7.97296577]
[1742580960345,29.48259856,126.31,126.3,7.9214]
[1742580962347,29.48259856,126.31,126.29,19.55005629]
[1742580962548,29.48259856,126.31,126.29,7.97276577]
[1742580963850,37.40339856,126.31,126.29,7.97276577]
[1742580968152,29.48259856,126.31,126.3,7.9214]
[1742580969055,29.48259856,126.31,126.29,7.97266577]
[1742580969654,29.48259856,126.31,126.3,7.9214]
[1742580970354,37.40339856,126.31,126.29,7.97276577]
[1742580970654,37.40339856,126.31,126.29,0.05106577]
[1742580970853,7.9214,126.3,126.29,0.05106577]
[1742580973251,19.49869052,126.3,126.29,0.05106577]
[1742580973849,7.9214,126.3,126.29,0.05106577]
[1742580975158,13.43838435,126.3,126.29,0.05106577]
[1742580975557,5.51698435,126.3,126.29,7.97306577]
[1742580976359,41.51879856,126.31,126.29,7.97306577]
[1742580978660,7.9214,126.3,126.29,0.05106577]
[1742580979054,33.59779856,126.31,126.29,0.05106577]
[1742580979260,41.51899856,126.31,126.29,0.05106577]
[1742580979460,41.51899856,126.31,126.29,7.97306577]
[1742580980259,7.9214,126.3,126.29,0.05106577]
[1742580984661,29.48259856,126.31,126.29,0.05106577]
[1742580984866,29.48259856,126.31,126.29,11.62835629]
[1742580985258,29.48259856,126.31,126.3,7.9214]
[1742580988365,29.48259856,126.31,126.29,19.55015629]
[1742580988871,29.48259856,126.31,126.29,11.62835629]
[1742580989667,29.48259856,126.31,126.29,19.55005629]
[1742580990570,29.48259856,126.31,126.3,7.9214]
[1742580995572,29.48259856,126.31,126.29,19.55005629]
[1742580995768,29.48259856,126.31,126.29,7.97276577]
[1742581001278,29.48259856,126.31,126.3,7.9214]
[1742581003274,29.48259856,126.31,126.29,0.05106577]
[1742581003477,11.57729052,126.3,126.22,11.57729052]
[1742581003675,11.57729052,126.27,126.22,11.57729052]
[1742581003976,7.9252,126.24,126.21,11.57729052]
[1742581004470,7.9252,126.24,126.21,11.63451183]
[1742581004777,14.89398357,126.23,126.21,11.63451183]
[1742581004976,14.89398357,126.22,126.21,11.63451183]
[1742581005272,14.89398357,126.22,126.21,0.05722131]
[1742581006574,5.72845522,126.22,126.21,0.05722131]
[1742581010277,13.65485522,126.22,126.21,0.05722131]
[1742581011081,13.22525141,126.22,126.21,0.05722131]
[1742581012981,7.9264,126.22,126.21,0.05722131]
[1742581013187,13.22120865,126.22,126.21,0.05722131]
[1742581014578,16.87209917,126.22,126.17,11.57729052]
[1742581014886,44.92818597,126.21,126.16,19.50719052]
[1742581015088,7.9286,126.19,126.16,19.50719052]
[1742581015386,39.63729052,126.21,126.16,19.50719052]
[1742581015387,39.63729052,126.21,126.17,11.57729052]
[1742581015582,5.28827705,126.2,126.17,11.57729052]
[1742581015789,5.28827705,126.19,126.18,0.05799009]
[1742581015984,5.28827705,126.19,126.18,11.63528061]
[1742581016287,0.0504521,126.2,126.19,7.9283]
[1742581016488,5.33898698,126.2,126.19,19.50559052]
[1742581016985,5.33888477,126.2,126.19,19.50559052]
[1742581018089,0.0504521,126.2,126.19,19.50559052]
[1742581018684,0.0504521,126.2,126.19,23.88699052]
[1742581020085,0.0504521,126.2,126.19,21.68379052]
[1742581020491,0.0504521,126.2,126.19,19.50559052]
[1742581021286,0.0504521,126.2,126.19,7.9283]
[1742581021483,5.33372777,126.2,126.19,7.9283]
[1742581021688,5.33250302,126.2,126.19,7.9283]
[1742581021880,5.33272084,126.2,126.19,7.9283]
[1742581022277,0.0504521,126.2,126.19,7.9283]
[1742581022477,5.33139047,126.2,126.19,7.9283]
[1742581024190,0.0504521,126.2,126.19,7.9283]
[1742581024386,0.0504521,126.2,126.19,19.50559052]
[1742581024584,28.08,126.23,126.22,7.9264]
[1742581024784,5.27934509,126.23,126.22,11.57729052]
[1742581025183,15.68469052,126.29,126.26,7.9236]
[1742581025387,5.28005686,126.28,126.25,11.57729052]
[1742581025583,5.28005686,126.27,126.26,11.57729052]
[1742581025787,28.08,126.29,126.27,7.9233]
[1742581025788,0.05753265,126.28,126.27,7.9233]
[1742581026188,0.05753265,126.28,126.27,19.50059052]
[1742581029090,3.265e-05,126.28,126.27,19.50059052]
[1742581029295,1.34714679,126.31,126.3,7.9214]
[1742581029501,1.34714679,126.31,126.29,11.57729052]
[1742581029697,1.34714679,126.31,126.28,19.49949052]
[1742581029896,1.34714679,126.31,126.28,11.57729052]
[1742581030297,1.40275513,126.31,126.3,7.9214]
[1742581030598,1.40275513,126.31,126.28,11.63045961]
[1742581030793,1.40275513,126.31,126.29,19.49899052]
[1742581032804,1.40275513,126.31,126.3,7.9214]
[1742581036302,1.40275513,126.31,126.29,11.57729052]
[1742581036506,1.40275513,126.31,126.29,19.49899052]
[1742581039410,1.40275513,126.31,126.3,7.9214]
[1742581040110,1.40275513,126.31,126.3,19.49869052]